bitfinex/quotes_SOLUSD_20250525
["timestamp","ask_amount","ask_price","bid_price","bid_amount"]
[1748210034561,8.26880334,171.82,171.8,16.26168027]
[1748210034762,10.41886067,171.82,171.8,16.26168027]
[1748210034968,10.41886067,171.82,171.79,16.26168027]
[1748210035173,3.31708328,171.81,171.79,16.26168027]
[1748210035481,13.73594395,171.81,171.79,16.26168027]
[1748210036282,3.96752744,171.8,171.79,16.26168027]
[1748210036484,8.26880334,171.8,171.79,16.26168027]
[1748210036682,8.26880334,171.8,171.76,26.0]
[1748210036866,8.26880334,171.8,171.79,16.26168027]
[1748210038587,3.96752744,171.8,171.79,16.26168027]
[1748210039193,11.58588662,171.8,171.79,16.26168027]
[1748210039979,13.73896791,171.8,171.79,16.26168027]
[1748210040198,10.42188463,171.8,171.79,16.26168027]
[1748210041055,8.26880334,171.8,171.79,16.26168027]
[1748210043595,11.58588662,171.8,171.79,16.26168027]
[1748210044391,11.58588662,171.8,171.76,26.0]
[1748210044572,11.58588662,171.8,171.79,16.26168027]
[1748210044890,3.96752744,171.8,171.79,16.26168027]
[1748210045993,8.27996675,171.8,171.79,16.26168027]
[1748210046178,11.59705003,171.8,171.79,16.26168027]
[1748210046994,13.75280557,171.8,171.79,16.26168027]
[1748210063500,13.75280557,171.8,171.78,16.26168027]
[1748210064106,10.43572229,171.79,171.78,16.26168027]
[1748210065013,17.92769266,171.79,171.78,16.26168027]
[1748210067742,13.75280557,171.79,171.78,16.26168027]
[1748210069651,17.92769266,171.79,171.78,16.26168027]
[1748210071742,13.75280557,171.79,171.78,16.26168027]
[1748210080044,17.92769266,171.79,171.78,16.26168027]
[1748210082143,13.75280557,171.79,171.78,16.26168027]
[1748210083744,13.75280557,171.79,171.73,32.65606157]
[1748210083944,13.75280557,171.79,171.76,26.0]
[1748210084247,6.12328298,171.78,171.75,26.0]
[1748210084426,9.44036626,171.78,171.75,26.0]
[1748210084622,4.31243931,171.77,171.75,26.0]
[1748210084828,6.46819485,171.77,171.75,26.0]
[1748210085035,3.96752744,171.76,171.75,26.0]
[1748210085236,3.96752744,171.76,171.75,42.26168027]
[1748210085457,8.27996675,171.76,171.75,42.26168027]
[1748210086353,11.59705003,171.76,171.75,42.26168027]
[1748210089252,7.28461072,171.76,171.75,42.26168027]
[1748210092236,3.96752744,171.76,171.75,42.26168027]
[1748210094055,3.96752744,171.76,171.75,26.0]
[1748210094236,3.96752744,171.76,171.75,42.26168027]
[1748210094763,7.29164035,171.76,171.75,42.26168027]
[1748210099365,11.62039967,171.76,171.75,42.26168027]
[1748210099760,7.65287223,171.76,171.75,42.26168027]
[1748210100857,3.32411291,171.76,171.75,26.0]
[1748210101060,3.32411291,171.76,171.75,42.26168027]
[1748210102847,3.32411291,171.76,171.75,26.0]
[1748210103051,7.65174459,171.76,171.72,16.26168027]
[1748210103349,2.16385987,171.75,171.72,16.26168027]
[1748210103756,9.66285987,171.75,171.72,16.26168027]
[1748210103957,4.32763168,171.74,171.72,16.26168027]
[1748210104361,2.16385987,171.73,171.72,16.26168027]
[1748210104851,6.49149155,171.73,171.72,16.26168027]
[1748210105457,9.81560446,171.73,171.72,16.26168027]
[1748210105646,7.65174459,171.73,171.72,16.26168027]
[1748210106378,9.81560446,171.73,171.72,16.26168027]
[1748210108154,7.65174459,171.73,171.72,16.26168027]
[1748210108971,3.32411291,171.73,171.72,16.26168027]
[1748210110463,7.63790843,171.73,171.72,16.26168027]
[1748210111874,3.32411291,171.73,171.72,16.26168027]
[1748210118773,3.32411291,171.73,171.68,26.0]
[1748210119080,3.32411291,171.73,171.72,16.26168027]
[1748210119860,7.63601034,171.73,171.72,16.26168027]
[1748210120183,7.63601034,171.73,171.71,16.26168027]
[1748210120684,3.32411291,171.72,171.71,16.26168027]
[1748210130285,3.32411291,171.72,171.68,60.9]
[1748210130482,3.32411291,171.72,171.71,16.26168027]
[1748210130884,7.25449904,171.72,171.71,16.26168027]
[1748210132294,11.5646691,171.72,171.71,16.26168027]
[1748210135371,7.63428297,171.72,171.71,16.26168027]
[1748210135696,3.32411291,171.72,171.71,16.26168027]
[1748210136509,7.63428297,171.72,171.71,16.26168027]
[1748210137217,3.32411291,171.72,171.71,16.26168027]
[1748210139406,7.63428297,171.72,171.71,16.26168027]
[1748210140702,9.79159902,171.72,171.71,16.26168027]
[1748210144804,13.72933157,171.72,171.71,16.26168027]
[1748210145619,9.79159902,171.72,171.71,16.26168027]
[1748210151027,13.96648611,171.72,171.71,16.26168027]
[1748210155524,13.96648611,171.72,171.68,60.9]
[1748210155716,13.96648611,171.72,171.7,16.26168027]
[1748210156030,7.63428297,171.71,171.7,16.26168027]
[1748210156325,9.79159902,171.71,171.7,16.26168027]
[1748210159127,13.96648611,171.71,171.7,16.26168027]
[1748210159827,13.96648611,171.71,171.66,26.0]
[1748210160043,13.96648611,171.71,171.69,16.26168027]
[1748210160532,7.63428297,171.7,171.69,16.26168027]
[1748210160745,9.79159902,171.7,171.69,16.26168027]
[1748210162632,9.79159902,171.7,171.67,26.0]
[1748210162934,5.48142896,171.7,171.69,16.26168027]
[1748210164132,9.80682667,171.7,171.69,16.26168027]
[1748210170940,13.98171376,171.7,171.69,16.26168027]
[1748210178764,13.98171376,171.7,171.67,26.0]
[1748210178935,11.82439771,171.7,171.69,16.26168027]
[1748210180855,13.98730708,171.7,171.69,16.26168027]
[1748210181355,9.81241999,171.7,171.69,16.26168027]
[1748210184062,9.81235351,171.7,171.69,16.26168027]
[1748210184239,13.9872406,171.7,171.69,16.26168027]
[1748210189564,9.81235351,171.7,171.69,16.26168027]
[1748210191957,13.9872406,171.7,171.69,16.26168027]
[1748210194567,13.9872406,171.7,171.67,26.0]
[1748210194863,13.9872406,171.7,171.68,16.26168027]
[1748210195468,4.32539771,171.69,171.68,16.26168027]
[1748210196065,7.64951062,171.69,171.68,16.26168027]
[1748210198873,9.8127364,171.69,171.68,16.26168027]
[1748210204277,7.64951062,171.69,171.68,16.26168027]
[1748210211880,7.64951062,171.69,171.68,16.40384184]
[1748210212057,3.32411291,171.69,171.68,16.40384184]
[1748210214779,3.32411291,171.69,171.68,22.22863214]
[1748210214958,4.17488709,171.73,171.68,22.22863214]
[1748210215280,4.17488709,171.73,171.72,16.26168027]
[1748210215660,10.66247364,171.73,171.72,16.26168027]
[1748210216586,13.98409516,171.73,171.72,16.26168027]
[1748210217888,9.80920807,171.73,171.72,16.26168027]
[1748210221259,7.64667922,171.73,171.72,16.26168027]
[1748210222568,3.32162152,171.73,171.72,16.26168027]
[1748210225679,4.17488709,171.77,171.72,16.26168027]
[1748210225984,4.31741786,171.76,171.71,77.08350337]
[1748210227192,3.31459867,171.75,171.71,77.08350337]
[1748210227394,3.31459867,171.75,171.74,16.26168027]
[1748210230481,3.31459867,171.75,171.65,1.6429]
[1748210230688,4.31457307,171.74,171.71,16.26168027]
[1748210230882,4.31457307,171.74,171.66,71.40216157]
[1748210230883,4.31457307,171.74,171.7,16.26168027]
[1748210231769,3.31459867,171.73,171.7,16.26168027]
[1748210232782,3.31459867,171.73,171.71,16.26168027]
[1748210232987,3.31459867,171.72,171.71,16.26168027]
[1748210248513,3.25341447,171.72,171.71,16.26168027]
[1748210249011,7.19253927,171.72,171.71,16.26168027]
[1748210249794,3.25341447,171.72,171.71,51.16168027]
[1748210249994,3.9391248,171.74,171.71,51.16168027]
[1748210250313,3.9391248,171.74,171.73,16.26168027]
[1748210251102,8.25473337,171.74,171.73,16.26168027]
[1748210252017,3.9391248,171.74,171.73,16.26168027]
[1748210253436,8.25592409,171.74,171.73,16.26168027]
[1748210255820,3.9391248,171.74,171.73,16.26168027]
[1748210256321,3.9391248,171.74,171.73,26.0]
[1748210256524,3.9391248,171.74,171.73,42.26168027]
[1748210261110,7.25686224,171.74,171.73,42.26168027]
[1748210264728,11.57691365,171.74,171.73,42.26168027]
[1748210265729,11.57691365,171.74,171.73,26.0]
[1748210265912,11.57691365,171.74,171.73,42.26168027]
[1748210267924,7.25686224,171.74,171.73,42.26168027]
[1748210270737,11.57718685,171.74,171.73,42.26168027]
[1748210277826,11.57718685,171.74,171.73,42.20049606]
[1748210279331,7.63806205,171.74,171.73,42.20049606]
[1748210282245,9.79885634,171.74,171.73,42.20049606]
[1748210285743,7.63806205,171.74,171.73,42.20049606]
[1748210289356,9.79925324,171.74,171.73,42.20049606]
[1748210292854,9.79925324,171.74,171.73,25.93881579]
[1748210293553,9.79925324,171.74,171.71,16.26168027]
[1748210293755,9.79925324,171.74,171.7,42.26168027]
[1748210293928,4.32032461,171.73,171.7,42.26168027]
[1748210294331,3.31773744,171.72,171.7,42.26168027]
[1748210295230,3.31773744,171.72,171.66,36.3]
[1748210295431,3.31773744,171.71,171.68,16.26168027]
[1748210295743,7.64004854,171.71,171.68,16.26168027]
[1748210295949,4.12221814,171.7,171.67,16.26168027]
[1748210296141,4.12221814,171.7,171.69,26.0]
[1748210296756,7.43995558,171.7,171.69,26.0]
[1748210297062,13.91970417,171.7,171.69,26.0]
[1748210297677,11.75980334,171.7,171.69,26.0]
[1748210297858,11.75980334,171.7,171.66,36.3]
[1748210298344,6.47743398,171.69,171.67,16.26168027]
[1748210298655,3.31773744,171.68,171.67,16.26168027]
[1748210298856,7.43995558,171.68,171.67,16.26168027]
[1748210299055,11.75980334,171.68,171.67,16.26168027]
[1748210301563,7.43995558,171.68,171.67,16.26168027]
[1748210302256,7.43995558,171.68,171.66,36.3]
[1748210302560,3.31773744,171.67,171.66,52.56168027]
[1748210302755,7.43995558,171.67,171.66,16.26168027]
[1748210304761,7.43995558,171.67,171.65,16.26168027]
[1748210305849,3.31773744,171.67,171.65,16.26168027]
[1748210306148,20.43656736,171.71,171.65,16.26168027]
[1748210306637,4.30401387,171.7,171.65,16.26168027]
[1748210306963,4.0982627,171.69,171.65,16.26168027]
[1748210307365,3.30511355,171.68,171.61,36.3]
[1748210307540,19.56679382,171.68,171.63,16.26168027]
[1748210307864,4.0982627,171.67,171.63,16.26168027]
[1748210308960,4.0982627,171.66,171.63,16.26168027]
[1748210309163,7.40337625,171.66,171.63,16.26168027]
[1748210309745,4.0982627,171.65,171.63,16.26168027]
[1748210310150,7.40337625,171.65,171.63,16.26168027]
[1748210310763,3.30511355,171.65,171.63,16.26168027]
[1748210312058,3.30511355,171.65,171.62,16.26168027]
[1748210312257,3.30511355,171.65,171.61,36.3]
[1748210312467,7.40337625,171.66,171.62,16.26168027]
[1748210314253,4.0982627,171.66,171.62,16.26168027]
[1748210314562,4.0982627,171.66,171.61,36.3]
[1748210314756,4.0982627,171.66,171.61,52.56168027]
[1748210314960,4.0982627,171.66,171.62,16.26168027]
[1748210317872,9.05777625,171.67,171.62,16.26168027]
[1748210319075,4.0982627,171.66,171.62,16.26168027]
[1748210319567,7.40337625,171.66,171.61,36.3]
[1748210319773,7.40337625,171.66,171.62,16.26168027]
[1748210320475,4.0982627,171.65,171.62,16.26168027]
[1748210320677,4.0982627,171.65,171.61,36.3]
[1748210320974,4.0982627,171.65,171.61,52.56168027]
[1748210321353,7.40337625,171.66,171.61,52.56168027]
[1748210323376,4.0982627,171.65,171.61,52.56168027]
[1748210323981,7.40337625,171.66,171.61,52.56168027]
[1748210327881,7.40337625,171.66,171.61,36.3]
[1748210328071,7.40337625,171.66,171.61,52.56168027]
[1748210328579,7.40337625,171.66,171.61,36.3]
[1748210328769,7.40337625,171.66,171.61,52.56168027]
[1748210328971,7.40337625,171.66,171.61,52.50633083]
[1748210329601,23.66505652,171.66,171.61,36.24465056]
[1748210329792,16.26168027,171.65,171.61,36.24465056]
[1748210330093,20.35994297,171.65,171.59,16.26168027]
[1748210330797,16.26168027,171.65,171.59,16.26168027]
[1748210331090,19.56679382,171.65,171.59,16.26168027]
[1748210332077,16.26168027,171.65,171.59,16.26168027]
[1748210333079,16.26168027,171.65,171.58,26.0]
[1748210333287,16.26168027,171.65,171.59,16.26168027]
[1748210333490,3.30511355,171.64,171.59,16.26168027]
[1748210333688,19.56679382,171.64,171.58,42.26168027]
[1748210334277,4.07150316,171.63,171.58,42.26168027]
[1748210334688,7.37661671,171.63,171.58,42.26168027]
[1748210335367,4.07150316,171.62,171.58,42.26168027]
[1748210336490,16.26168027,171.64,171.58,42.26168027]
[1748210336678,4.17488709,171.66,171.58,42.26168027]
[1748210336876,16.26168027,171.64,171.58,42.26168027]
[1748210337284,4.29905778,171.63,171.58,42.26168027]
[1748210338692,3.30269576,171.62,171.59,26.0]
[1748210338894,7.37804146,171.62,171.59,26.0]
[1748210339468,4.0753457,171.61,171.59,26.0]
[1748210340195,16.26168027,171.63,171.59,26.0]
[1748210340490,16.26168027,171.63,171.57,26.0]
[1748210340694,16.26168027,171.63,171.57,42.26168027]
[1748210340880,4.3038627,171.62,171.57,42.26168027]
[1748210341597,3.3058736,171.61,171.57,42.26168027]
[1748210342002,4.07310007,171.6,171.57,42.26168027]
[1748210343177,3.3058736,171.61,171.57,42.26168027]
[1748210343496,20.43656736,171.63,171.57,42.26168027]
[1748210344095,16.26168027,171.6,171.56,36.3]
[1748210344296,4.06811181,171.59,171.54,16.26168027]
[1748210344611,7.60764333,171.58,171.54,16.26168027]
[1748210345487,4.06811181,171.57,171.53,16.26168027]
[1748210345890,7.37248044,171.57,171.53,16.26168027]
[1748210346292,7.37248044,171.57,171.54,16.26168027]
[1748210346600,4.06811181,171.56,171.54,16.26168027]
[1748210347199,3.30436863,171.57,171.52,1.5427]
[1748210347410,3.30436863,171.56,171.54,16.26168027]
[1748210347980,3.30436863,171.56,171.52,1.5427]
[1748210348177,3.30436863,171.56,171.53,16.26168027]
[1748210348691,4.29895037,171.58,171.53,16.26168027]
[1748210349097,4.29895037,171.58,171.52,1.5427]
[1748210349293,22.70951499,171.58,171.52,16.26168027]
[1748210349696,20.31850297,171.57,171.5,62.28]
[1748210349901,23.61783573,171.57,171.51,16.26168027]
[1748210350307,16.26168027,171.56,171.5,62.28]
[1748210350510,16.26168027,171.56,171.5,78.54168027]
[1748210350712,4.0568227,171.55,171.5,78.54168027]
[1748210351515,3.29933276,171.54,171.5,78.54168027]
[1748210351714,7.35615546,171.54,171.5,78.54168027]
[1748210352621,3.29933276,171.54,171.5,78.54168027]
[1748210352905,3.29933276,171.54,171.5,42.26168027]
[1748210353213,3.29933276,171.54,171.5,26.0]
[1748210353396,7.35615546,171.55,171.5,42.26168027]
[1748210356005,7.35615546,171.55,171.5,16.26168027]
[1748210362113,23.61783573,171.55,171.49,16.26168027]
[1748210363302,4.0568227,171.54,171.49,16.26168027]
[1748210370742,20.31850297,171.54,171.48,16.26168027]
[1748210371130,4.0568227,171.53,171.48,16.26168027]
[1748210373445,16.26168027,171.52,171.46,16.26168027]
[1748210373758,16.26168027,171.52,171.43,62.3]
[1748210373759,16.26168027,171.5,171.43,36.3]
[1748210373966,16.26168027,171.46,171.39,71.24]
[1748210374151,20.27874886,171.5,171.39,52.56168027]
[1748210374152,16.26168027,171.45,171.39,52.56168027]
[1748210374335,16.26168027,171.41,171.33,1.6369]
[1748210374670,16.26168027,171.41,171.32,6.0567]
[1748210374671,16.26168027,171.39,171.32,36.28]
[1748210374955,16.26168027,171.37,171.28,43.9736]
[1748210375162,16.26168027,171.35,171.29,16.26168027]
[1748210375343,16.26168027,171.35,171.28,43.9736]
[1748210375747,16.26168027,171.35,171.29,16.26168027]
[1748210375956,25.52694739,171.35,171.29,25.52694739]
[1748210376162,25.52694739,171.35,171.28,43.9736]
[1748210376360,44.17659625,171.4,171.22,18.64964886]
[1748210376361,25.52694739,171.33,171.27,25.52694739]
[1748210376539,25.52694739,171.31,171.24,61.80694739]
[1748210376867,25.52694739,171.3,171.24,87.80694739]
[1748210377252,25.52694739,171.3,171.24,62.28]
[1748210377547,25.52694739,171.3,171.23,25.52694739]
[1748210377747,25.52694739,171.3,171.24,25.52694739]
[1748210378441,25.52694739,171.31,171.25,25.52694739]
[1748210378762,28.82628015,171.32,171.26,25.52694739]
[1748210379063,3.29933276,171.32,171.28,25.52694739]
[1748210379262,3.29933276,171.32,171.31,25.52694739]
[1748210379856,3.29933276,171.32,171.31,25.66910896]
[1748210380266,3.29933276,171.32,171.31,61.96910896]
[1748210380454,3.29933276,171.32,171.31,67.8064798]
[1748210380973,3.29933276,171.32,171.31,42.27953241]
[1748210381157,4.17488709,171.36,171.34,26.0]
[1748210381479,4.17488709,171.36,171.35,60.64910896]
[1748210382058,4.17488709,171.36,171.35,66.48511713]
[1748210382785,28.82628015,171.43,171.36,0.14216157]
[1748210382966,28.82628015,171.43,171.38,25.52694739]
[1748210383665,28.82628015,171.43,171.37,25.52694739]
[1748210384680,3.29933276,171.43,171.37,25.52694739]
[1748210384866,28.82628015,171.43,171.37,25.52694739]
[1748210385378,3.29933276,171.43,171.36,25.66910896]
[1748210387964,3.29933276,171.43,171.37,25.52694739]
[1748210388159,3.29933276,171.43,171.36,0.14216157]
[1748210388383,3.29933276,171.43,171.36,25.66910896]
[1748210391578,3.29933276,171.43,171.36,0.14216157]
[1748210391782,28.82628015,171.43,171.37,25.52694739]
[1748210391984,3.29933276,171.43,171.37,25.52694739]
[1748210392780,3.29933276,171.43,171.36,25.66910896]
[1748210392991,3.29933276,171.43,171.37,25.52694739]
[1748210396187,3.29933276,171.43,171.36,26.14216157]
[1748210396388,28.82628015,171.43,171.37,25.52694739]
[1748210396581,28.82628015,171.43,171.36,25.52694739]
[1748210397296,28.82628015,171.43,171.37,25.52694739]
[1748210398191,3.29933276,171.43,171.38,25.52694739]
[1748210398690,3.29933276,171.43,171.36,0.14216157]
[1748210398894,3.29933276,171.43,171.38,25.52694739]
[1748210400272,3.29933276,171.43,171.39,6.6246]
[1748210400515,4.17488709,171.47,171.42,25.52694739]
[1748210400696,4.17488709,171.47,171.45,25.52694739]
[1748210400902,4.17488709,171.47,171.46,25.52694739]
[1748210401582,4.17488709,171.47,171.46,61.96910896]
[1748210401789,8.19476851,171.51,171.46,61.96910896]
[1748210401985,8.19476851,171.51,171.5,25.52694739]
[1748210402190,4.09139001,171.56,171.5,60.50694739]
[1748210402391,4.09139001,171.56,171.55,25.52694739]
[1748210402788,4.09139001,171.56,171.52,61.82694739]
[1748210402998,4.09139001,171.56,171.52,36.3]
[1748210403195,4.09139001,171.56,171.52,34.98]
[1748210403610,4.09139001,171.56,171.52,60.50694739]
[1748210403792,4.09139001,171.56,171.54,25.52694739]
[1748210403990,4.09139001,171.56,171.55,25.52694739]
[1748210405096,25.52694739,171.62,171.55,25.52694739]
[1748210405298,25.52694739,171.62,171.57,25.52694739]
[1748210405498,25.52694739,171.62,171.56,25.52694739]
[1748210406017,25.52694739,171.6,171.53,26.0]
[1748210406187,25.52694739,171.58,171.53,34.96]
[1748210406529,0.14216157,171.64,171.51,26.0]
[1748210406530,25.52694739,171.57,171.51,60.48694739]
[1748210406718,25.52694739,171.57,171.52,25.52694739]
[1748210407288,25.52694739,171.57,171.51,34.96]
[1748210407289,25.52694739,171.57,171.51,25.52694739]
[1748210407707,25.52694739,171.55,171.49,96.88694739]
[1748210408218,18.64964886,171.59,171.5,25.52694739]
[1748210408421,25.52694739,171.56,171.5,25.52694739]
[1748210409512,25.52694739,171.56,171.48,60.48694739]
[1748210409513,25.52694739,171.54,171.48,60.48694739]
[1748210410737,25.52694739,171.53,171.47,60.48694739]
[1748210410941,18.64964886,171.55,171.47,34.96]
[1748210410942,25.52694739,171.52,171.47,34.96]
[1748210411118,25.52694739,171.53,171.46,36.4]
[1748210411315,25.52694739,171.53,171.47,25.52694739]
[1748210411712,25.52694739,171.52,171.46,96.88694739]
[1748210412118,25.52694739,171.52,171.46,71.36]
[1748210412322,137.9,171.54,171.45,25.52694739]
[1748210412323,44.17659625,171.51,171.45,25.52694739]
[1748210412521,25.52694739,171.5,171.44,25.52694739]
[1748210412722,25.52694739,171.49,171.43,25.52694739]
[1748210413146,18.64964886,171.48,171.42,96.88694739]
[1748210413449,44.17659625,171.48,171.42,96.88694739]
[1748210413816,18.64964886,171.46,171.39,83.92]
[1748210414033,25.52694739,171.45,171.39,60.48694739]
[1748210414230,25.52694739,171.44,171.39,34.96]
[1748210414537,25.52694739,171.45,171.4,25.52694739]
[1748210415422,25.52694739,171.45,171.39,34.96]
[1748210415630,25.52694739,171.45,171.39,25.52694739]
[1748210416145,25.52694739,171.45,171.38,61.92694739]
[1748210416324,18.64964886,171.47,171.33,42.4193]
[1748210416325,25.52694739,171.41,171.33,42.4193]
[1748210416534,25.52694739,171.41,171.35,25.52694739]
[1748210416734,44.17659625,171.4,171.33,71.36]
[1748210416932,25.52694739,171.39,171.33,36.4]
[1748210417246,25.52694739,171.39,171.33,61.92694739]
[1748210417538,44.17659625,171.38,171.33,36.4]
[1748210417745,44.17659625,171.38,171.32,25.52694739]
[1748210418327,25.52694739,171.37,171.31,60.48694739]
[1748210418651,25.52694739,171.37,171.31,34.96]
[1748210418825,18.64964886,171.38,171.31,34.96]
[1748210418826,25.52694739,171.36,171.31,34.96]
[1748210419140,25.52694739,171.36,171.3,25.52694739]
[1748210419447,3.26668713,171.37,171.32,25.52694739]
[1748210419623,3.26668713,171.37,171.28,71.36]
[1748210419624,44.17659625,171.36,171.28,71.36]
[1748210419823,18.64964886,171.36,171.29,25.52694739]
[1748210421259,44.17659625,171.35,171.28,36.4]
[1748210421429,25.52694739,171.33,171.28,36.4]
[1748210421629,18.64964886,171.32,171.28,36.4]
[1748210421952,18.64964886,171.32,171.25,67.2817]
[1748210422151,25.52694739,171.3,171.24,25.52694739]
[1748210422743,25.52694739,171.29,171.23,61.92694739]
[1748210422946,25.52694739,171.27,171.18,120.32]
[1748210423132,25.52694739,171.25,171.19,25.52694739]
[1748210423333,25.52694739,171.26,171.2,25.52694739]
[1748210423541,44.17659625,171.27,171.21,25.52694739]
[1748210423750,36.42,171.3,171.25,25.52694739]
[1748210423929,34.98,171.33,171.26,40.85894197]
[1748210424133,40.85894197,171.33,171.27,40.85894197]
[1748210424446,18.64964886,171.32,171.28,40.85894197]
[1748210424625,40.85894197,171.34,171.28,40.85894197]
[1748210425466,40.85894197,171.34,171.29,40.85894197]
[1748210425667,40.85894197,171.36,171.3,40.85894197]
[1748210425850,18.64964886,171.36,171.31,40.85894197]
[1748210426051,40.85894197,171.38,171.32,40.85894197]
[1748210426252,18.64964886,171.37,171.32,40.85894197]
[1748210426542,18.64964886,171.37,171.31,40.85894197]
[1748210426543,59.50859083,171.37,171.31,40.85894197]
[1748210427362,40.85894197,171.38,171.32,40.85894197]
[1748210427991,68.565,171.4,171.34,40.85894197]
[1748210427992,36.42,171.4,171.34,40.85894197]
[1748210428260,59.50859083,171.41,171.35,40.85894197]
[1748210428465,40.85894197,171.42,171.36,40.85894197]
[1748210429960,59.50859083,171.43,171.38,40.85894197]
[1748210430456,77.27894197,171.45,171.38,40.85894197]
[1748210430648,18.64964886,171.44,171.35,0.14216157]
[1748210430849,59.50859083,171.44,171.37,40.85894197]
[1748210431063,40.85894197,171.43,171.37,40.85894197]
[1748210431564,40.85894197,171.43,171.36,40.85894197]
[1748210431766,40.85894197,171.42,171.35,0.14216157]
[1748210431957,40.85894197,171.42,171.36,40.85894197]
[1748210432471,40.85894197,171.4,171.34,75.83894197]
[1748210434854,18.64964886,171.4,171.35,40.85894197]
[1748210435553,40.85894197,171.4,171.34,75.83894197]
[1748210435973,40.85894197,171.4,171.34,34.98]
[1748210437270,40.85894197,171.38,171.32,75.83894197]
[1748210438458,40.85894197,171.38,171.33,40.85894197]
[1748210438858,18.64964886,171.38,171.33,40.85894197]
[1748210439160,18.64964886,171.38,171.31,36.42]
[1748210439365,18.64964886,171.38,171.33,40.85894197]
[1748210440583,18.64964886,171.38,171.31,36.42]
[1748210440774,18.64964886,171.38,171.33,40.85894197]
[1748210441984,18.64964886,171.38,171.32,40.85894197]
[1748210442382,18.64964886,171.38,171.31,77.27894197]
[1748210442962,18.64964886,171.38,171.31,112.25894197]
[1748210443677,156.54964886,171.38,171.31,112.25894197]
[1748210445270,156.54964886,171.38,171.31,71.4]
[1748210445478,178.75894197,171.37,171.28,41.5738]
[1748210445675,40.85894197,171.34,171.28,75.83894197]
[1748210445982,25.53130709,171.34,171.28,60.51130709]
[1748210446379,137.9,171.36,171.29,25.53130709]
[1748210446575,163.43130709,171.36,171.3,25.53130709]
[1748210446790,137.9,171.36,171.31,25.53130709]
[1748210448070,137.9,171.36,171.32,25.53130709]
[1748210448777,137.9,171.36,171.31,60.51130709]
[1748210452295,137.9,171.36,171.32,25.53130709]
[1748210453795,137.9,171.39,171.33,25.53130709]
[1748210454098,137.9,171.39,171.37,25.53130709]
[1748210454099,3.28421699,171.38,171.37,25.53130709]
[1748210454867,3.28421699,171.41,171.37,25.53130709]
[1748210455083,3.28421699,171.41,171.38,25.53130709]
[1748210455793,7.2883003,171.41,171.38,25.53130709]
[1748210456603,3.28421699,171.41,171.38,25.53130709]
[1748210456905,3.28421699,171.4,171.37,25.53130709]
[1748210458202,4.28794941,171.42,171.37,25.53130709]
[1748210458576,4.01687091,171.41,171.37,25.53130709]
[1748210458992,8.30482032,171.41,171.37,25.53130709]
[1748210459398,4.01687091,171.41,171.37,25.53130709]
[1748210459691,4.01687091,171.4,171.37,25.53130709]
[1748210460600,4.01687091,171.4,171.36,34.98]
[1748210460805,3.29937467,171.39,171.36,60.51130709]
[1748210461106,4.01687091,171.38,171.36,60.51130709]
[1748210461702,3.29937467,171.37,171.36,60.51130709]
[1748210461902,3.29937467,171.37,171.32,63.14]
[1748210462098,4.01687091,171.36,171.34,25.53130709]
[1748210462592,4.01687091,171.36,171.33,60.51130709]
[1748210462789,7.59580768,171.37,171.33,60.51130709]
[1748210463015,4.29643301,171.37,171.34,25.53130709]
[1748210463193,4.12465986,171.39,171.34,25.53130709]
[1748210463194,4.29643301,171.38,171.34,25.53130709]
[1748210464100,6.44465366,171.38,171.34,25.53130709]
[1748210464300,4.02034678,171.37,171.33,34.98]
[1748210464500,4.02034678,171.37,171.34,25.53130709]
[1748210464682,4.02034678,171.37,171.35,25.53130709]
[1748210464888,4.02034678,171.37,171.36,25.53130709]
[1748210466021,4.02034678,171.37,171.35,60.51130709]
[1748210466514,7.32151975,171.37,171.35,60.51130709]
[1748210467090,4.29643301,171.38,171.35,60.51130709]
[1748210467288,3.30117297,171.39,171.35,60.51130709]
[1748210468415,4.02264385,171.38,171.35,60.51130709]
[1748210468617,7.32381682,171.38,171.35,60.51130709]
[1748210469420,4.02264385,171.37,171.35,34.98]
[1748210469615,7.32381682,171.37,171.35,60.51130709]
[1748210470420,7.32381682,171.37,171.36,25.53130709]
[1748210470634,3.30117297,171.37,171.36,25.53130709]
[1748210470927,3.30117297,171.39,171.36,25.53130709]
[1748210471098,3.30117297,171.39,171.38,25.53130709]
[1748210471424,7.33088708,171.39,171.38,60.51130709]
[1748210471623,11.63856779,171.39,171.38,60.51130709]
[1748210472928,7.33088708,171.39,171.38,60.51130709]
[1748210475210,4.02971411,171.39,171.38,60.51130709]
[1748210476029,4.12465986,171.42,171.38,60.51130709]
[1748210476407,4.12465986,171.42,171.39,25.53130709]
[1748210476918,7.33644395,171.41,171.39,25.53130709]
[1748210477123,11.64232273,171.41,171.39,25.53130709]
[1748210477714,7.33644395,171.41,171.39,25.53130709]
[1748210477900,4.02927548,171.4,171.39,25.53130709]
[1748210478107,7.33644395,171.4,171.39,25.53130709]
[1748210481422,7.33644395,171.4,171.38,34.98]
[1748210481615,4.02927548,171.4,171.36,25.53130709]